bitfinex-derivatives/quotes_BTCF0:USTF0_20250119
["timestamp","ask_amount","ask_price","bid_price","bid_amount"]
[1737249560301,0.20708892,104170.0,104160.0,1.04380392]
[1737249560689,0.18691495,104170.0,104160.0,1.04380392]
[1737249561603,0.17291496,104170.0,104160.0,1.04380392]
[1737249562103,0.13533496,104170.0,104160.0,1.04380392]
[1737249562408,0.10156496,104170.0,104160.0,1.04380392]
[1737249563909,0.06637496,104170.0,104160.0,1.04380392]
[1737249564413,0.06179866,104170.0,104160.0,1.04380392]
[1737249564600,0.10226135,104180.0,104170.0,0.048044]
[1737249564802,0.10226135,104180.0,104170.0,0.14299595]
[1737249565107,0.06861135,104180.0,104170.0,0.14299595]
[1737249565297,0.03389135,104180.0,104170.0,0.50379595]
[1737249570613,0.15939135,104180.0,104170.0,0.50379595]
[1737249574417,0.15939135,104180.0,104170.0,0.51581119]
[1737249574810,0.09046135,104180.0,104170.0,0.51581119]
[1737249575716,0.09046135,104180.0,104170.0,0.50379595]
[1737249576508,0.09046135,104180.0,104170.0,0.61143195]
[1737249576712,0.09046135,104180.0,104170.0,0.68947595]
[1737249576713,0.45126135,104180.0,104170.0,0.68947595]
[1737249577913,0.41684135,104180.0,104170.0,0.68947595]
[1737249578520,0.41684135,104180.0,104170.0,0.70149119]
[1737249578820,0.58884496,104180.0,104170.0,0.70149119]
[1737249579020,0.58884496,104180.0,104170.0,0.68947595]
[1737249579207,0.58884496,104180.0,104170.0,0.70149118]
[1737249579824,0.57969327,104180.0,104170.0,0.70149118]
[1737249580121,0.57338633,104180.0,104170.0,0.70149118]
[1737249581518,0.54770244,104180.0,104170.0,0.70149118]
[1737249581720,0.54770244,104180.0,104170.0,0.594524]
[1737249581919,0.64265439,104180.0,104170.0,0.594524]
[1737249582228,0.53778231,104180.0,104170.0,0.594524]
[1737249582723,0.3657787,104180.0,104170.0,0.57654059]
[1737249582923,0.3657787,104180.0,104170.0,0.70149254]
[1737249583216,0.4238177,104180.0,104160.0,0.02908389]
[1737249583421,0.62999595,104170.0,104150.0,0.51648]
[1737249583624,0.45575195,104160.0,104150.0,0.51648]
[1737249583815,0.45575195,104160.0,104150.0,0.54648]
[1737249584518,0.3608,104160.0,104150.0,0.54648]
[1737249584709,0.3608,104160.0,104150.0,0.594533]
[1737249584910,0.32762001,104160.0,104150.0,0.68948495]
[1737249585326,0.45762001,104160.0,104150.0,0.68948495]
[1737249585522,0.45762001,104160.0,104150.0,0.594533]
[1737249586231,0.45762001,104160.0,104150.0,0.54526423]
[1737249586921,0.62961398,104160.0,104150.0,0.54526423]
[1737249588220,0.59617798,104160.0,104150.0,0.54526423]
[1737249590322,0.59617798,104160.0,94828.0,0.05]
[1737249590521,0.3608,104130.0,104120.0,0.048067]
[1737249590721,0.3608,104140.0,104130.0,0.048062]
[1737249590922,0.3608,104140.0,104130.0,0.16301395]
[1737249591527,0.35408283,104140.0,104130.0,0.16301395]
[1737249592030,0.4973206,104140.0,104130.0,0.16301395]
[1737249594019,0.1433206,104140.0,104130.0,0.46301395]
[1737249594231,0.79939397,104150.0,104130.0,0.51107595]
[1737249594527,0.79939397,104150.0,104140.0,0.09495195]
[1737249595427,0.35506126,104150.0,104140.0,0.14300895]
[1737249595620,0.03629504,104160.0,104140.0,0.50380895]
[1737249595820,0.03629504,104160.0,104150.0,0.09495195]
[1737249596020,0.39709504,104160.0,104150.0,0.09495195]
[1737249596927,0.36331504,104160.0,104150.0,0.09495195]
[1737249598829,0.36331504,104160.0,104150.0,0.14300495]
[1737249599027,0.36025212,104160.0,104150.0,0.14300495]
[1737249599731,0.32674212,104160.0,104150.0,0.65956495]
[1737249600025,0.31077344,104160.0,104150.0,0.65956495]
[1737249600931,0.43697344,104160.0,104150.0,0.65956495]
[1737249602329,0.43697344,104160.0,104150.0,0.564613]
[1737249605835,0.43697344,104160.0,104150.0,0.59394985]
[1737249607437,0.40516502,104160.0,104150.0,0.59394985]
[1737249609240,0.40516502,104160.0,104150.0,0.6889018]
[1737249612339,0.3663811,104160.0,104150.0,0.6889018]
[1737249612536,0.3567011,104160.0,104150.0,0.6889018]
[1737249616940,0.529058,104160.0,104150.0,0.6889018]
[1737249621452,0.529058,104160.0,104150.0,0.68889437]
[1737249622054,0.529058,104160.0,104150.0,0.65359451]
[1737249622950,0.6593569,104160.0,104150.0,0.65359451]
[1737249625956,0.2344169,104160.0,104150.0,0.65359451]
[1737249626152,0.19923371,104160.0,104150.0,0.65359451]
[1737249626359,0.16415371,104160.0,104150.0,0.65359451]
[1737249626652,0.05398106,104160.0,104150.0,0.65359451]
[1737249628554,0.56769373,104170.0,104160.0,0.048048]
[1737249628848,0.56769373,104170.0,104160.0,0.10769266]
[1737249632052,0.56769373,104170.0,104160.0,0.048048]
[1737249632555,0.62733839,104170.0,104160.0,0.048048]
[1737249632743,0.62733839,104170.0,104150.0,0.60554151]
[1737249632744,0.63733839,104170.0,104150.0,0.65359351]
[1737249632944,0.63733839,104170.0,104150.0,0.54589685]
[1737249632945,0.55044466,104160.0,104150.0,0.54589685]
[1737249633558,0.56044466,104160.0,104150.0,0.34469685]
[1737249633755,0.60849266,104160.0,104150.0,0.34469685]
[1737249634650,0.60849266,104160.0,104150.0,0.14779685]
[1737249635556,0.60851756,104160.0,104150.0,0.14779685]
[1737249636143,0.64383444,104160.0,104150.0,0.14779685]
[1737249636758,0.64383444,104160.0,104150.0,0.02933685]
[1737249637057,0.64383444,104160.0,104130.0,0.18381239]
[1737249637258,0.3608,104140.0,104130.0,0.18381239]
[1737249637463,0.3608,104140.0,104130.0,0.23113266]
[1737249637769,0.62775872,104140.0,104130.0,0.23113266]
[1737249638748,0.4843,104140.0,104130.0,0.23113266]
[1737249638954,0.4843,104140.0,104130.0,0.13614622]
[1737249639454,0.57928644,104140.0,104130.0,0.08808722]
[1737249639962,0.72274516,104140.0,104130.0,0.08808722]
[1737249640164,1.13160216,104140.0,104130.0,0.08808722]
[1737249643663,0.048062,104130.0,104120.0,0.51656]
[1737249643862,0.62414844,104130.0,104120.0,0.51656]
[1737249644763,0.62414844,104130.0,104120.0,0.562768]
[1737249645060,0.76760716,104130.0,104120.0,0.562768]
[1737249645754,0.77760716,104130.0,104120.0,0.562768]
[1737249647662,0.72954516,104130.0,104120.0,0.562768]
[1737249648169,0.85904516,104130.0,104120.0,0.562768]
[1737249651064,0.71558644,104130.0,104120.0,0.562768]
[1737249651662,0.668662,104130.0,104120.0,0.562768]
[1737249651965,0.76364844,104130.0,104120.0,0.562768]
[1737249657370,0.76369375,104130.0,104120.0,0.562768]
[1737249658170,0.72836135,104130.0,104120.0,0.562768]
[1737249660472,0.418862,104130.0,104120.0,0.62246735]
[1737249660672,0.47856135,104130.0,104120.0,0.74916735]
[1737249661878,0.62202007,104130.0,104120.0,0.74916735]
[1737249662971,0.62202007,104130.0,104120.0,0.689468]
[1737249668773,0.62202007,104130.0,104120.0,0.74916735]
[1737249669077,0.79353505,104130.0,104120.0,0.74916735]
[1737249670276,0.65007633,104130.0,104120.0,0.74916735]
[1737249671879,0.65007633,104130.0,104120.0,0.689468]
[1737249673178,0.65007633,104130.0,104120.0,0.172908]
[1737249675690,0.60260903,104130.0,104120.0,0.172908]
[1737249675877,0.60260903,104130.0,104120.0,0.23260735]
[1737249676588,0.60260903,104130.0,104120.0,0.172908]
[1737249678890,0.43109405,104130.0,104120.0,0.172908]
[1737249681192,0.60354832,104130.0,104120.0,0.172908]
[1737249683093,1.01181562,104130.0,104120.0,0.172908]
[1737249683588,0.29021562,104130.0,104120.0,0.172908]
[1737249683889,1.01181562,104130.0,104120.0,0.172908]
[1737249686185,1.01181562,104130.0,104120.0,0.046208]
[1737249686380,0.048067,104120.0,104110.0,0.49534761]
[1737249686575,0.46856635,104120.0,104110.0,0.37184761]
[1737249686785,0.58906635,104120.0,104110.0,0.37184761]
[1737249687384,0.58906635,104120.0,104110.0,0.38687648]
[1737249687689,0.76152062,104120.0,104110.0,0.38687648]
[1737249687890,0.77152062,104120.0,104110.0,0.38687648]
[1737249688783,0.77152062,104120.0,104110.0,0.37184761]
[1737249688991,0.77152062,104120.0,104110.0,0.41882829]
[1737249690381,0.77152062,104120.0,104110.0,0.18909516]
[1737249699403,0.71182127,104120.0,104110.0,0.18909516]
[1737249699604,0.77152062,104120.0,104110.0,0.18909516]
[1737249705196,0.59906635,104120.0,104110.0,0.18909516]
[1737249705398,0.95986635,104120.0,104110.0,0.18909516]
[1737249707504,1.13202433,104120.0,104110.0,0.18909516]
[1737249710305,0.95986635,104120.0,104110.0,0.18909516]
[1737249711006,0.95986635,104120.0,104110.0,0.04698068]
[1737249711310,0.048071,104110.0,104100.0,0.3588389]
[1737249711609,0.408871,104110.0,104100.0,0.40604173]
[1737249711798,0.408871,104110.0,104100.0,0.42107157]
[1737249713308,0.62207436,104110.0,104090.0,0.28761811]
[1737249713504,0.62517535,104100.0,104090.0,0.28761811]
[1737249714609,0.01,104090.0,104070.0,1.36645829]
[1737249714811,0.3608,104080.0,104070.0,1.36645829]
[1737249715401,0.3608,104080.0,104070.0,1.41556919]
[1737249716001,0.47858335,104090.0,104070.0,1.41556919]
[1737249716202,0.79416301,104090.0,104080.0,0.05969935]
[1737249717315,0.79416301,104090.0,104070.0,1.06825173]
[1737249717518,0.6219582,104090.0,104070.0,1.12795108]
[1737249717814,0.6219582,104090.0,104070.0,0.55145173]
[1737249717815,0.42049935,104080.0,104070.0,0.55145173]
[1737249718000,0.46858435,104080.0,104070.0,0.55145173]
[1737249720111,0.6119592,104080.0,104070.0,0.55145173]
[1737249720905,0.6119592,104080.0,104070.0,0.61115108]
[1737249721512,0.6119592,104080.0,104070.0,0.05055173]
[1737249721716,0.048094,104060.0,104050.0,0.2089]
[1737249721907,0.46859335,104060.0,104050.0,0.31787482]
[1737249722210,0.46859335,104060.0,104050.0,0.07333296]
[1737249722613,0.46859335,104060.0,104050.0,0.13303231]
[1737249723911,0.408894,104060.0,104050.0,0.13303231]
[1737249724422,0.048094,104060.0,104050.0,0.13303231]
[1737249725314,0.048094,104060.0,104050.0,0.14806838]
[1737249725510,0.408894,104060.0,104050.0,0.14806838]
[1737249725815,0.83799035,104070.0,104050.0,0.14806838]
[1737249726205,0.408891,104070.0,104060.0,0.05969935]
[1737249726518,0.68400546,104080.0,104060.0,0.42049935]
[1737249726819,0.13174361,104080.0,104070.0,0.05969935]
[1737249727018,0.46858535,104080.0,104060.0,0.69813542]
[1737249727215,0.10778535,104080.0,104060.0,0.69813542]
[1737249727419,0.46858535,104080.0,104060.0,0.69813542]
[1737249729112,0.42049935,104070.0,104060.0,0.63843607]
[1737249729310,0.4205588,104070.0,104060.0,0.63843607]
[1737249729623,0.4686488,104070.0,104060.0,0.63843607]
[1737249730013,0.40889,104070.0,104060.0,0.63843607]
[1737249731222,0.40889,104070.0,104060.0,0.01503607]
[1737249731223,0.50401559,104070.0,104060.0,0.01503607]
[1737249731430,0.91551559,104070.0,104060.0,0.01503607]
[1737249733414,0.82039,104070.0,104060.0,0.01503607]
[1737249733724,0.82039,104070.0,104060.0,0.11016166]
[1737249735328,0.40889,104070.0,104060.0,0.11016166]
[1737249735619,0.3608,104070.0,104060.0,0.70736166]
[1737249740722,0.77406185,104080.0,104060.0,0.70736166]
[1737249741722,0.77406185,104080.0,104070.0,0.09512559]
[1737249742224,0.77406185,104080.0,104070.0,0.11016166]
[1737249742729,0.77406185,104080.0,104070.0,0.09512559]
[1737249743431,0.77406185,104080.0,104070.0,0.11016022]
[1737249744730,0.77406185,104080.0,104070.0,0.01503463]
[1737249744917,0.77406185,104080.0,104070.0,0.11016022]
[1737249746518,0.72597485,104080.0,104070.0,0.11016022]
[1737249747724,0.72597485,104080.0,104070.0,0.01503463]
[1737249748426,0.72597485,104080.0,104070.0,0.11016022]
[1737249749825,0.72597485,104080.0,104070.0,0.15894834]
[1737249750827,0.75480481,104080.0,104070.0,0.15894834]
[1737249751433,0.75480481,104080.0,104070.0,0.15891609]
[1737249752736,0.75480481,104080.0,104070.0,0.12355932]
[1737249753234,0.75480481,104080.0,104070.0,0.06382275]
[1737249753435,0.75480481,104080.0,104070.0,0.12355932]
[1737249758634,0.72604437,104080.0,104070.0,0.12355932]
[1737249759341,0.0673878,104080.0,104070.0,0.17164932]
[1737249761039,1.010083,104090.0,104070.0,0.17164932]
[1737249761239,1.010083,104090.0,104080.0,0.05973657]
[1737249763441,1.18228781,104090.0,104080.0,0.05973657]
[1737249764742,1.13420481,104090.0,104080.0,0.05973657]
[1737249765443,1.13420481,104090.0,104080.0,0.07476971]
[1737249766041,0.962,104090.0,104080.0,0.07476971]
[1737249769342,0.962,104090.0,104080.0,0.12285471]
[1737249769547,0.98238787,104110.0,104080.0,0.43556971]
[1737249769743,0.79715431,104110.0,104100.0,0.05973657]
[1737249770039,0.78289874,104120.0,104100.0,0.62477257]
[1737249770244,0.38614186,104120.0,104110.0,0.05973657]
[1737249770439,0.74694186,104120.0,104110.0,0.05973657]
[1737249771039,0.5597,104120.0,104110.0,0.05973657]
[1737249771238,0.1989,104120.0,104110.0,0.05973657]
[1737249771439,0.1989,104120.0,104110.0,0.05968829]
[1737249771839,0.5597,104120.0,104110.0,0.09501382]
[1737249772856,0.55485877,104120.0,104110.0,0.09501382]
[1737249773047,0.5480877,104120.0,104110.0,0.09501382]
[1737249774645,0.7723,104130.0,104110.0,0.14308482]
[1737249774851,0.7723,104130.0,104120.0,0.09501382]
[1737249775750,0.3608,104130.0,104120.0,0.09501382]
[1737249779754,0.408862,104130.0,104120.0,0.09501382]
[1737249780057,0.408862,104130.0,104110.0,0.14220925]
[1737249780360,0.9681,104120.0,104110.0,0.14220925]
[1737249784456,0.9681,104120.0,104110.0,0.04719543]
[1737249784757,1.016167,104120.0,104100.0,1.45414571]
[1737249784957,1.016167,104120.0,104100.0,1.50112696]
[1737249785858,1.016167,104120.0,104100.0,1.09225296]
[1737249786659,1.016167,104120.0,104100.0,0.86225507]
[1737249788250,0.9681,104120.0,104110.0,0.09501382]
[1737249794163,0.91883643,104120.0,104110.0,0.09501382]
[1737249795466,0.91883643,104120.0,104110.0,0.09502277]
[1737249796162,0.91883643,104120.0,104110.0,0.05969172]
[1737249797661,0.96690343,104120.0,104110.0,0.05969172]
[1737249798468,1.10989631,104120.0,104110.0,0.05969172]
[1737249801363,1.10989631,104120.0,104110.0,0.28968961]
[1737249803567,1.17958803,104120.0,104110.0,0.22999789]
[1737249803759,1.17958803,104120.0,104110.0,0.517616]
[1737249805670,1.20818661,104120.0,104100.0,0.85363086]
[1737249805966,0.408871,104110.0,104100.0,0.85363086]
[1737249806574,0.55237763,104110.0,104100.0,0.85363086]
[1737249807366,0.55237763,104110.0,104100.0,0.85365061]
[1737249807668,0.55237763,104110.0,104100.0,0.79393914]
[1737249809069,0.55237763,104110.0,104100.0,0.88899006]
[1737249809870,0.58046246,104110.0,104100.0,0.65899217]
[1737249810468,0.58046246,104110.0,104100.0,0.86269217]
[1737249812273,0.7239281,104110.0,104100.0,0.86269217]
[1737249813775,0.7239281,104110.0,104100.0,0.56394125]
[1737249815180,0.55233664,104110.0,104100.0,0.56394125]
[1737249816570,0.55233664,104110.0,104100.0,0.04698125]
[1737249816770,0.55233664,104110.0,104090.0,0.09505092]
[1737249816967,0.3608,104100.0,104090.0,0.09505092]
[1737249818274,0.3608,104100.0,104090.0,0.32540839]
[1737249818869,0.3608,104100.0,104090.0,0.36000049]
[1737249819776,0.3608,104100.0,104090.0,0.6476186]
[1737249820172,0.408876,104100.0,104090.0,0.6476186]
[1737249821176,0.408876,104100.0,104090.0,0.55256768]
[1737249822775,0.408876,104100.0,104090.0,0.26494957]
[1737249825396,0.408876,104100.0,104090.0,0.0345921]
[1737249825397,0.55234164,104100.0,104090.0,0.0345921]
[1737249825673,0.55234164,104100.0,104080.0,1.80064839]
[1737249825879,0.55234164,104100.0,104090.0,0.09505092]
[1737249829474,0.55234164,104100.0,104090.0,0.09505467]
[1737249830178,0.55234164,104100.0,104090.0,0.05971383]
[1737249830770,0.55234164,104100.0,104090.0,0.06071383]
[1737249831379,0.55234164,104100.0,104090.0,0.06171383]
[1737249832085,0.50426564,104100.0,104090.0,0.06171383]
[1737249832984,0.47452564,104100.0,104090.0,0.06171383]
[1737249833177,0.3608,104100.0,104090.0,0.64380948]
[1737249834583,0.3608,104100.0,104090.0,0.98905321]
[1737249836789,0.3608,104100.0,104090.0,0.92933938]
[1737249836985,0.3608,104100.0,104090.0,0.98905321]
[1737249843785,0.64017829,104110.0,104090.0,0.98905321]
[1737249843984,0.58046446,104110.0,104090.0,0.98905321]
[1737249844487,0.53239146,104110.0,104100.0,0.05971383]
[1737249844693,0.92314976,104120.0,104100.0,0.26491383]
[1737249844892,0.91308684,104120.0,104110.0,0.05971383]
[1737249846088,0.91308684,104120.0,104110.0,0.06071383]
[1737249846399,0.91308684,104120.0,104110.0,0.29252909]
[1737249848302,0.38753704,104120.0,104110.0,0.34060009]
[1737249848489,0.38753704,104120.0,104110.0,0.51356028]
[1737249849701,0.38753704,104120.0,104110.0,0.34060009]
[1737249850093,0.38753704,104120.0,104110.0,0.29252909]
[1737249850294,0.49531787,104120.0,104110.0,0.29252909]
[1737249850792,0.69981787,104120.0,104110.0,0.29252909]
[1737249851790,0.69981787,104120.0,104110.0,0.32759816]
[1737249851990,0.64010404,104120.0,104110.0,0.32759816]
[1737249852404,0.69981787,104120.0,104110.0,0.32759816]
[1737249852605,0.69981787,104120.0,104110.0,0.50041514]
[1737249853494,0.64010404,104120.0,104110.0,0.50041514]
[1737249854001,0.64010404,104120.0,104110.0,0.26959988]
[1737249855098,0.64010404,104120.0,104110.0,0.32759816]
[1737249855300,0.59203704,104120.0,104110.0,0.32759816]
[1737249855800,0.02673704,104120.0,104110.0,0.32759816]
[1737249856006,0.02673704,104120.0,104110.0,0.73646916]
[1737249857003,0.5623,104130.0,104110.0,0.73646916]
[1737249857205,0.5623,104130.0,104120.0,0.05971383]
[1737249857502,0.610362,104130.0,104120.0,0.05971383]
[1737249857906,0.5623,104130.0,104120.0,0.05971383]
[1737249858096,0.5623,104130.0,104120.0,0.25041383]
[1737249858703,0.5623,104130.0,104120.0,0.42313488]
[1737249859012,0.01,104130.0,104120.0,0.47320188]
[1737249859399,0.01,104130.0,104120.0,0.83400188]
[1737249859895,0.81146,104140.0,104120.0,0.53129609]
[1737249860100,0.61596,104140.0,104130.0,0.05971383]
[1737249860493,0.5679,104140.0,104130.0,0.05971383]
[1737249860697,0.247155,104150.0,104130.0,0.46857583]
[1737249861010,0.82905,104160.0,104140.0,0.62453083]
[1737249861205,0.82905,104160.0,104150.0,0.05971383]
[1737249863107,0.82905,104160.0,104150.0,0.06171383]
[1737249863305,0.82905,104160.0,104150.0,0.06164463]
[1737249864308,0.97224676,104160.0,104150.0,0.09694594]
[1737249866113,0.97224676,104160.0,104150.0,0.002]
[1737249866406,1.0671927,104160.0,104150.0,0.002]
[1737249867410,1.0671927,104160.0,104150.0,0.03101152]
[1737249867807,0.97224676,104160.0,104150.0,0.03101152]
[1737249870110,0.82905,104160.0,104150.0,0.03101152]
[1737249872404,0.97224676,104160.0,104150.0,0.03101152]
[1737249880112,0.97224676,104160.0,104150.0,0.12595746]
[1737249880313,0.50399676,104160.0,104150.0,0.12595746]
[1737249880513,0.14319676,104160.0,104150.0,0.12595746]
[1737249882310,0.665993,104170.0,104150.0,0.29859696]
[1737249882614,0.617945,104170.0,104160.0,0.09494594]
[1737249882818,1.13192236,104180.0,104160.0,0.34999394]
[1737249883122,0.72382236,104180.0,104170.0,0.09494594]
[1737249883322,0.36302236,104180.0,104170.0,0.09494594]
[1737249883619,0.19123676,104180.0,104170.0,0.09494594]
[1737249883817,0.55203676,104180.0,104170.0,0.09494594]
[1737249884416,0.55203676,104180.0,104170.0,0.09594594]
[1737249884617,0.40884,104180.0,104170.0,0.26858544]
[1737249885930,0.40884,104180.0,104170.0,0.26958544]
[1737249886123,0.2198256,104180.0,104170.0,0.09694594]
[1737249886328,0.5806256,104180.0,104170.0,0.09694594]
[1737249890143,0.1717856,104180.0,104170.0,0.09694594]
[1737249891233,0.1717856,104180.0,104170.0,0.09055829]
[1737249892035,0.1717856,104180.0,104170.0,0.11633072]
[1737249892232,0.14334134,104180.0,104170.0,0.11633072]
[1737249893848,0.7897206,104190.0,104170.0,0.28897022]
[1737249893849,0.617935,104190.0,104170.0,0.28897022]
[1737249894145,0.617935,104190.0,104180.0,0.81347829]
[1737249896144,0.617935,104190.0,104180.0,0.81447829]
[1737249897733,0.617935,104190.0,104180.0,0.81547829]
[1737249898946,0.3608,104190.0,104180.0,0.81547829]
[1737249899445,0.3608,104190.0,104180.0,1.23487829]
[1737249900237,0.14334134,104190.0,104180.0,1.37147358]
[1737249900434,0.01684375,104190.0,104180.0,1.37147358]
[1737249900735,0.18882923,104200.0,104180.0,1.28291529]
[1737249900937,0.18882923,104200.0,104190.0,0.08855829]
[1737249901137,0.59765923,104200.0,104190.0,0.08855829]
[1737249901651,0.42587363,104200.0,104190.0,0.08855829]
[1737249902042,0.51443192,104200.0,104180.0,1.23487829]
[1737249902257,0.93543192,104200.0,104180.0,0.81547829]
[1737249902452,0.611334,104190.0,104180.0,0.72692]
[1737249902952,0.611334,104190.0,104180.0,0.72592]
[1737249903640,0.611334,104190.0,104180.0,0.81547829]
[1737249903948,0.611334,104190.0,104180.0,0.81447829]
[1737249904854,0.611334,104190.0,104180.0,0.81547829]
[1737249906748,0.611334,104190.0,104180.0,0.51852]
[1737249907254,0.621334,104190.0,104180.0,0.51852]
[1737249908142,0.70989229,104190.0,104180.0,0.51852]
[1737249908751,0.621334,104190.0,104180.0,0.51852]
[1737249911155,0.70989229,104190.0,104180.0,0.002]
[1737249911343,0.70989229,104190.0,104180.0,0.1746395]
[1737249911549,0.69989229,104190.0,104180.0,0.1746395]
[1737249912861,0.87167789,104190.0,104180.0,0.002]
[1737249915471,0.89996945,104190.0,104180.0,0.002]
[1737249922663,0.81141116,104190.0,104180.0,0.002]
[1737249922965,0.89996945,104190.0,104180.0,0.002]
[1737249923862,0.69989229,104190.0,104180.0,0.002]
[1737249924962,0.78359547,104190.0,104180.0,0.002]
[1737249925359,0.87215376,104190.0,104180.0,0.002]
[1737249926153,0.69989229,104190.0,104180.0,0.002]
[1737249928762,0.87215376,104190.0,104180.0,0.002]
[1737249930855,1.01565383,104190.0,104180.0,0.002]
[1737249931563,0.98523373,104190.0,104180.0,0.002]
[1737249931762,0.84173366,104190.0,104180.0,0.002]
[1737249932664,0.79359547,104190.0,104180.0,0.06013819]
[1737249932961,0.59109547,104190.0,104180.0,0.26713819]
[1737249933151,0.17226147,104190.0,104180.0,0.68607638]
[1737249933349,0.05636297,104190.0,104180.0,0.94261538]
[1737249933554,0.05507463,104200.0,104180.0,0.94261538]
[1737249933855,0.00704363,104200.0,104190.0,1.19279638]
[1737249934055,0.82554217,104210.0,104190.0,1.24083038]
[1737249934357,0.82554217,104210.0,104200.0,0.11627638]
[1737249934358,0.048026,104210.0,104200.0,0.11627638]
[1737249934551,0.048026,104210.0,104200.0,0.33008898]
[1737249935369,0.78751617,104220.0,104200.0,0.30232713]
[1737249935658,0.25816691,104230.0,104210.0,0.58585406]
[1737249935860,0.048017,104230.0,104220.0,0.76562906]
[1737249936068,0.048017,104230.0,104220.0,0.68912713]
[1737249936366,0.048017,104230.0,104220.0,0.68912402]
[1737249937267,0.048017,104230.0,104220.0,0.69012402]
[1737249937566,0.048017,104230.0,104220.0,0.92093928]
[1737249938559,0.048017,104230.0,104220.0,0.69112402]
[1737249938760,0.048017,104230.0,104220.0,0.89332402]
[1737249939158,0.048017,104230.0,104220.0,0.88131453]
[1737249939762,0.50024643,104240.0,104220.0,0.96982906]
[1737249940071,0.11825929,104240.0,104230.0,0.80347453]
[1737249940259,0.16627029,104240.0,104230.0,0.80347453]
[1737249941163,0.048011,104240.0,104230.0,0.80347453]
[1737249942865,0.048011,104240.0,104230.0,0.71696]
[1737249943070,0.048011,104240.0,104230.0,0.80547453]
[1737249943372,0.048011,104240.0,104230.0,0.80447453]
[1737249946574,0.048011,104240.0,104230.0,0.51736]
[1737249946575,0.408811,104240.0,104230.0,0.51736]
[1737249946766,0.49732553,104240.0,104230.0,0.51736]
[1737249947269,0.69682553,104240.0,104230.0,0.001]
[1737249947657,0.608311,104240.0,104230.0,0.001]
[1737249948461,0.69682553,104240.0,104230.0,0.001]
[1737249949268,0.247511,104240.0,104230.0,0.001]
[1737249949473,0.247511,104240.0,104230.0,0.08951453]
[1737249949668,0.3608,104250.0,104230.0,0.08951453]
[1737249949971,0.408808,104250.0,104240.0,0.08851453]
[1737249951660,0.408808,104250.0,104240.0,0.08951453]
[1737249951867,0.812604,104260.0,104240.0,0.08951453]
[1737249952179,0.812604,104260.0,104250.0,0.08851453]
[1737249952563,0.451804,104260.0,104250.0,0.08851453]
[1737249952962,0.812604,104260.0,104250.0,0.08851453]
[1737249953167,0.812604,104260.0,104250.0,0.08951453]
[1737249953575,0.812604,104260.0,104250.0,0.001]
[1737249954373,0.812604,104260.0,104250.0,0.002]
[1737249954671,0.812604,104260.0,104250.0,0.001]
[1737249957366,0.812604,104260.0,104250.0,0.08951453]
[1737249960275,0.812604,104260.0,104250.0,0.001]
[1737249960475,0.812604,104260.0,104250.0,0.02058298]
[1737249960681,0.812604,104260.0,104250.0,0.001]
[1737249963983,0.90111853,104260.0,104250.0,0.001]
[1737249964788,0.90111853,104260.0,104250.0,0.17311576]
[1737249967479,0.90111853,104260.0,104250.0,0.001]
[1737249968784,1.1008373,104260.0,104250.0,0.001]
[1737249970284,0.7400373,104260.0,104250.0,0.001]
[1737249970478,1.1008373,104260.0,104250.0,0.001]
[1737249972987,1.01232277,104260.0,104250.0,0.001]
[1737249976485,0.95626604,104260.0,104250.0,0.23181526]
[1737249977278,0.95626604,104260.0,104250.0,0.32032979]
[1737249977486,0.19166604,104260.0,104250.0,0.32032979]
[1737249977786,0.14366204,104260.0,104250.0,0.33233668]
[1737249978389,0.14366204,104260.0,104250.0,0.82965761]
[1737249978587,0.1676212,104270.0,104250.0,1.04255761]
[1737249978780,0.1427112,104270.0,104260.0,0.84711453]
[1737249978987,0.1427112,104270.0,104260.0,0.85911933]
[1737249979193,0.9417062,104280.0,104260.0,0.85911933]
[1737249979490,0.9417062,104280.0,104270.0,0.08851453]
[1737249980398,0.798995,104280.0,104270.0,0.62547694]
[1737249980585,0.798995,104280.0,104270.0,0.71399147]
[1737249982796,0.798995,104280.0,104270.0,0.49078892]
[1737249982991,0.408795,104280.0,104270.0,0.49078892]
[1737249983198,0.408795,104280.0,104270.0,0.68928892]
[1737249983494,0.408789,104290.0,104270.0,0.68928892]
[1737249983683,0.047989,104290.0,104280.0,0.17702906]
[1737249983993,0.568886,104300.0,104280.0,0.53782906]
[1737249984190,0.568886,104300.0,104290.0,0.08851453]
[1737249985398,0.359686,104300.0,104290.0,0.08851453]
[1737249986593,0.147986,104300.0,104290.0,0.08851453]
[1737249986898,0.1,104300.0,104290.0,0.26091784]
[1737249987394,0.1,104300.0,104290.0,0.46931784]
[1737249989098,0.1,104300.0,104290.0,0.83011784]
[1737249990185,0.0114791,104310.0,104290.0,0.83011784]
[1737249990390,0.7566,104330.0,104300.0,0.44931453]
[1737249990597,0.84511453,104330.0,104310.0,0.29821453]
[1737249990890,0.84511453,104330.0,104310.0,0.2097]
[1737249991899,0.84511453,104330.0,104310.0,0.29821453]
[1737249992693,0.84511453,104330.0,104310.0,0.2097]
[1737249993601,1.04981453,104330.0,104310.0,0.2097]
[1737249993800,0.08851453,104320.0,104310.0,0.2097]
[1737249994401,1.04981453,104330.0,104310.0,0.2097]
[1737249995503,1.04981453,104330.0,104310.0,0.22737069]
[1737249995698,0.68901453,104330.0,104310.0,0.22737069]
[1737249996002,1.04981453,104330.0,104310.0,0.22737069]
[1737249996402,0.08851453,104320.0,104310.0,0.22737069]
[1737249997103,0.44931453,104320.0,104310.0,0.01767069]
[1737249997304,0.44931453,104320.0,104300.0,0.603784]
[1737250000197,0.44931453,104320.0,104300.0,0.62178476]
[1737250001797,0.08851453,104310.0,104300.0,0.62178476]
[1737250002995,0.08851453,104310.0,104300.0,0.42678476]
[1737250003196,0.29141453,104310.0,104300.0,0.42678476]
[1737250004798,0.29141453,104310.0,104300.0,0.59918807]
[1737250005105,0.29141453,104310.0,104300.0,0.61118787]
[1737250006005,0.29141453,104310.0,104300.0,0.43878456]
[1737250006707,0.2029,104310.0,104300.0,0.43878456]
[1737250007102,0.2029,104310.0,104300.0,0.52729909]
[1737250007303,0.15962948,104310.0,104300.0,0.69970238]
[1737250007503,0.44931453,104320.0,104300.0,0.69970238]
[1737250007802,0.44931453,104320.0,104300.0,0.80648785]
[1737250008106,0.49161453,104330.0,104310.0,0.408779]
[1737250008304,0.49161453,104330.0,104310.0,0.42077878]
[1737250008502,0.4031,104330.0,104310.0,1.22639331]
[1737250009006,0.49161453,104330.0,104310.0,1.22639331]
[1737250009211,0.3608,104340.0,104330.0,0.04797]
[1737250009408,0.44931453,104340.0,104330.0,0.04797]
[1737250010809,0.08851453,104340.0,104330.0,0.04797]
[1737250011004,0.08851453,104340.0,104330.0,0.05996715]
[1737250012199,0.80401831,104350.0,104330.0,0.25866715]